Workbook

Sheet TV
A2: NTSC 6 mHz | G2: PAL 8 mHz | V2: Shure | X2: Sennheisert | AB2: AKG | AD2: EV | AF2: Q5X
A3: TV | C3: Start | D3: Middle | E3: End | G3: TV | H3: D | I3: Start | J3: Middle | K3: End | N3: Lectrosonics | P3: Telex BTR 700/800 | R3: HME Pro850 | T3: VEGA Q700 | V3: SHURE UHF and UHF-R | Z3: A/T
A4: 7 | C4: 174 | D4: 177 | E4: 180 | G4: 5 | I4: 174 | J4: =+I4+4.5 -> 178.5 | K4: 181
A7: =+A4+1 -> 8 | C7: 180 | D7: 183 | E7: 186
G8: 6 | I8: =+K4 -> 181 | J8: =+I8+4.5 -> 185.5 | K8: =+I8+7 -> 188
A10: =+A7+1 -> 9 | C10: 186 | D10: 189 | E10: 192
G12: 7 | I12: =+K8 -> 188 | J12: =+I12+4.5 -> 192.5 | K12: =+I12+7 -> 195
A13: =+A10+1 -> 10 | C13: 192 | D13: 195 | E13: 198
A16: =+A13+1 -> 11 | C16: 198 | D16: 201 | E16: 204 | G16: 8 | I16: =+K12 -> 195 | J16: =+I16+4.5 -> 199.5 | K16: =+I16+7 -> 202
A19: =+A16+1 -> 12 | C19: 204 | D19: 207 | E19: 210
G20: 9 | I20: =+K16 -> 202 | J20: =+I20+4.5 -> 206.5 | K20: =+I20+7 -> 209
A22: =+A19+1 -> 13 | C22: 210 | D22: 213 | E22: 216
G24: 10 | I24: =+K20 -> 209 | J24: =+I24+4.5 -> 213.5 | K24: =+I24+7 -> 216
A29: 14 | C29: 470 | D29: 473 | E29: 476 | G29: 21 | I29: 470 | J29: 474 | K29: 470
A32: 15 | C32: 476 | D32: 479 | E32: 482
G33: 22 | I33: 478 | J33: 482 | K33: 486
A35: 16 | C35: 482 | D35: 485 | E35: 488
G37: 23 | I37: 486 | J37: 490 | K37: 494
A38: 17 | C38: 488 | D38: 491 | E38: 494
A41: 18 | C41: 494 | D41: 497 | E41: 500 | G41: 24 | I41: 494 | J41: 498 | K41: 502
A44: 19 | C44: 500 | D44: 503 | E44: 506
G45: 25 | I45: 502 | J45: 506 | K45: 510
A47: 20 | C47: 506 | D47: 509 | E47: 512
G49: 26 | I49: 510 | J49: 514 | K49: 518
A50: 21 | C50: 512 | D50: 515 | E50: 518
A53: 22 | C53: 518 | D53: 521 | E53: 524 | G53: 27 | I53: 518 | J53: 522 | K53: 526
A56: 23 | C56: 524 | D56: 527 | E56: 530
G57: 28 | I57: 526 | J57: 530 | K57: 534
A59: 24 | C59: 530 | D59: 533 | E59: 536
G61: 29 | I61: 534 | J61: 538 | K61: 542
A62: 25 | C62: 536 | D62: 539 | E62: 542
A65: 26 | C65: 542 | D65: 545 | E65: 548 | G65: 30 | I65: 542 | J65: 546 | K65: 550
A68: 27 | C68: 548 | D68: 551 | E68: 554
G69: 31 | I69: 550 | J69: 554 | K69: 558
A71: 28 | C71: 554 | D71: 557 | E71: 560
G73: 32 | I73: 558 | J73: 562 | K73: 566
A74: 29 | C74: 560 | D74: 563 | E74: 566
A77: 30 | C77: 566 | D77: 569 | E77: 572 | G77: 33 | I77: 566 | J77: 570 | K77: 574
A80: 31 | C80: 572 | D80: 575 | E80: 578
G81: 34 | I81: 574 | J81: 578 | K81: 582
A83: 32 | C83: 578 | D83: 581 | E83: 584
G85: 35 | I85: 582 | J85: 586 | K85: 590
A86: 33 | C86: 584 | D86: 587 | E86: 590
A89: 34 | C89: 590 | D89: 593 | E89: 596 | G89: 36 | I89: 590 | J89: 594 | K89: 598
A92: 35 | C92: 596 | D92: 599 | E92: 602
G93: 37 | I93: 598 | J93: 602 | K93: 606
A95: 36 | C95: 602 | D95: 605 | E95: 608
G97: 38 | I97: 606 | J97: 610 | K97: 614
A98: 37 | B98: x | C98: 608 | D98: 611 | E98: 614
A101: 38 | B101: x | C101: 614 | D101: 617 | E101: 620 | G101: 39 | I101: 614 | J101: 618 | K101: 622
A104: 39 | B104: x | C104: 620 | D104: 623 | E104: 626
G105: 40 | I105: 622 | J105: 626 | K105: 630
A107: 40 | B107: x | C107: 626 | D107: 629 | E107: 632
G109: 41 | I109: 630 | J109: 634 | K109: 638
A110: 41 | B110: x | C110: 632 | D110: 635 | E110: 638
A113: 42 | B113: x | C113: 638 | D113: 641 | E113: 644 | G113: 42 | I113: 638 | J113: 642 | K113: 646
A116: 43 | B116: x | C116: 644 | D116: 647 | E116: 650
G117: 43 | I117: 646 | J117: 650 | K117: 654
A119: 44 | B119: x | C119: 650 | D119: 653 | E119: 656
G121: 44 | I121: 654 | J121: 658 | K121: 662
A122: 45 | B122: x | C122: 656 | D122: 659 | E122: 662
A125: 46 | B125: x | C125: 662 | D125: 665 | E125: 668 | G125: 45 | I125: 662 | J125: 666 | K125: 670
A128: 47 | B128: x | C128: 668 | D128: 671 | E128: 674
G129: 46 | I129: 670 | J129: 674 | K129: 678
A131: 48 | B131: x | C131: 674 | D131: 677 | E131: 680
G133: 47 | I133: 678 | J133: 682 | K133: 686
A134: 49 | B134: x | C134: 680 | D134: 683 | E134: 686
A137: 50 | B137: x | C137: 686 | D137: 689 | E137: 692 | G137: 48 | I137: 686 | J137: 690 | K137: 694
A140: 51 | B140: x | C140: 692 | D140: 695 | E140: 698
G141: 49 | I141: 694 | J141: 698 | K141: 702
G145: 50 | I145: 702 | J145: 706 | K145: 710
G149: 51 | I149: 710 | J149: 714 | K149: 718
G153: 52 | I153: 718 | J153: 722 | K153: 726
G157: 53 | I157: 726 | J157: 730 | K157: 734
G161: 54 | I161: 734 | J161: 738 | K161: 742
G165: 55 | I165: 742 | J165: 746 | K165: 750
G169: 56 | I169: 750 | J169: 754 | K169: 758
G173: 57 | I173: 758 | J173: 762 | K173: 766
B177: X | G177: 58 | I177: 766 | J177: 770 | K177: 774
B178: X
B179: X
B180: X
B181: X | G181: 59 | I181: 774 | J181: 778 | K181: 782
B182: X
B183: X
B184: X
B185: X | G185: 60 | I185: 782 | J185: 786 | K185: 790
B186: X
B187: X
B188: X
B189: X | G189: 61 | I189: 790 | J189: 794 | K189: 798
B190: X
B191: X
B192: X
B193: X | G193: 62 | I193: 798 | J193: 802 | K193: 806
B194: X
B195: X
B196: X
B197: X | G197: 63 | I197: 806 | J197: 810 | K197: 814
B198: X
B199: X
B200: X
B201: X | G201: 64 | I201: 814 | J201: 818 | K201: 822
B202: X
B203: X
B204: X
B205: X | G205: 65 | I205: 822 | J205: 826 | K205: 830
B206: X
B207: X
B208: X
B209: X | G209: 66 | I209: 830 | J209: 834 | K209: 838
B210: X
B211: X
B212: X
B213: X | G213: 67 | I213: 838 | J213: 842 | K213: 846
B214: X
B215: X
B216: X
B217: X | G217: 68 | I217: 846 | J217: 850 | K217: 854
B218: X
B219: X
B220: X
B221: X | G221: 69 | I221: 854 | J221: 858 | K221: 862
B222: X
B223: X
B224: X
B225: X | I225: 862 | J225: 866 | K225: 870
B226: X
B227: X
B228: X
B229: X | I229: 870 | J229: 874 | K229: 878
B230: X
B231: X
B232: X
B233: X | I233: 878 | J233: 882 | K233: 886
B234: X
B235: X
B236: X
B237: X | I237: 886 | J237: 890 | K237: 894
B238: X
B239: X
B240: X
B241: X | I241: 894 | J241: 898 | K241: 902
B242: X
B243: X
B244: X
B245: X | I245: 902 | J245: 906 | K245: 910
B246: X
B247: X
B248: X
B249: X | I249: 910 | J249: 914 | K249: 918
B250: X
B251: X
B252: X
B253: X | I253: 918 | J253: 922 | K253: 926
B254: X
B255: X
B256: X
B257: X | I257: 926 | J257: 930 | K257: 934
B258: X
B259: X
B260: X
B261: X | I261: 934 | J261: 938 | K261: 942
B262: X
B263: X
B264: X
B265: X | I265: 942 | J265: 946 | K265: 950
B266: X
B267: X
B268: X
B269: X | I269: 950 | J269: 954 | K269: 958
B270: X
B271: X
B272: X
B273: X | I273: 958 | J273: 962 | K273: 966
B274: X
B275: X
B276: X
B277: X
A283: 7 | B283: =B4 -> 0 | G283: 5 | H283: =H4 -> 0
A284: 7 | B284: =B4 -> 0 | G284: 5 | H284: =H4 -> 0
A285: 7 | B285: =B4 -> 0 | G285: 5 | H285: =H4 -> 0
A286: 8 | B286: =B7 -> 0 | G286: 5 | H286: =H4 -> 0
A287: 8 | B287: =B7 -> 0 | G287: =+G283+1 -> 6 | H287: =H8 -> 0
A288: 8 | B288: =B7 -> 0 | G288: 6 | H288: =H8 -> 0
A289: 9 | B289: =B10 -> 0 | G289: 6 | H289: =H8 -> 0
A290: 9 | B290: =B10 -> 0 | G290: 6 | H290: =H8 -> 0
A291: 9 | B291: =B10 -> 0 | G291: 7 | H291: =H12 -> 0
A292: 10 | B292: =B13 -> 0 | G292: 7 | H292: =H12 -> 0
A293: 10 | B293: =B13 -> 0 | G293: 7 | H293: =H12 -> 0
A294: 10 | B294: =B13 -> 0 | G294: 7 | H294: =H12 -> 0
A295: 11 | B295: =B16 -> 0 | G295: 8 | H295: =H16 -> 0
A296: 11 | B296: =B16 -> 0 | G296: 8 | H296: =H16 -> 0
A297: 11 | B297: =B16 -> 0 | G297: 8 | H297: =H16 -> 0
A298: 12 | B298: =B19 -> 0 | G298: 8 | H298: =H16 -> 0
A299: 12 | B299: =B19 -> 0 | G299: 9 | H299: =H20 -> 0
A300: 12 | B300: =B19 -> 0 | G300: 9 | H300: =H20 -> 0
A301: 13 | B301: =B22 -> 0 | G301: 9 | H301: =H20 -> 0
A302: 13 | B302: =B22 -> 0 | G302: 9 | H302: =H20 -> 0
A303: 13 | B303: =B22 -> 0 | G303: 10 | H303: =H24 -> 0
... 292 more rows
